fUSD/lending_fUSD_20250514
["ID","MTS","AMOUNT","RATE_DAILY","PERIOD"]
[361032344,1747209130718,-1242.02,0.00014794,2]
[361032345,1747209130727,-790.06,0.00014794,2]
[361032346,1747209130738,-183.963342,0.00014794,2]
[361032347,1747209130747,-400.0,0.00014794,2]
[361032348,1747209130761,-1050.16,0.00014794,2]
[361032349,1747209130771,-400.0,0.00014794,2]
[361032350,1747209130782,-151.0,0.00014794,2]
[361032351,1747209130791,-21204.56,0.00014794,2]
[361032352,1747209130801,-1025.65,0.00014794,2]
[361032353,1747209130811,-400.0,0.00014794,2]
[361032354,1747209130821,-462.47,0.00014794,2]
[361032355,1747209130830,-173.76227,0.00014794,2]
[361032356,1747209130839,-489.88,0.00014794,2]
[361032357,1747209130849,-433.44,0.00014794,2]
[361032358,1747209130859,-1903.72,0.00014794,2]
[361032359,1747209130869,-173.76227,0.00014794,2]
[361032360,1747209130878,-903.36,0.00014794,2]
[361032361,1747209130887,-400.0,0.00014794,2]
[361032362,1747209130895,-620.740344,0.00014794,2]
[361032363,1747209130904,-460.59,0.00014794,2]
[361032364,1747209130913,-620.740344,0.00014794,2]
[361032365,1747209130922,-1352.46,0.00014794,2]
[361032366,1747209130931,-2297.07,0.00014794,2]
[361032367,1747209130940,-5802.65,0.00014794,2]
[361032368,1747209130949,-713.5,0.00014794,2]
[361032369,1747209130958,-1266.9,0.00014794,2]
[361032370,1747209130966,-1158.53,0.00014794,2]
[361032371,1747209130975,-434.56,0.00014794,2]
[361032372,1747209130983,-1010.68,0.00014794,2]
[361032373,1747209130991,-484.69,0.00014794,2]
[361032374,1747209131002,-1095.0,0.00014794,2]
[361032375,1747209131011,-1932.75,0.00014794,2]
[361032376,1747209131020,-435.72,0.00014794,2]
[361032377,1747209131029,-1315.66,0.00014794,2]
[361032378,1747209131037,-457.59,0.00014794,2]
[361032379,1747209131046,-454.255713,0.00014794,2]
[361032380,1747209131055,-332.69947659,0.00014794,2]
[361032381,1747209131063,-496.1,0.00014794,2]
[361032382,1747209131072,-814.19,0.00014794,2]
[361032383,1747209131080,-459.36,0.00014794,2]
[361032384,1747209131089,-5005.62,0.00014794,2]
[361032385,1747209131098,-454.255713,0.00014794,2]
[361032386,1747209131106,-615.67,0.00014794,2]
[361032387,1747209131115,-4200.08,0.00014794,2]
[361032388,1747209131125,-151.0,0.00014794,2]
[361032389,1747209131134,-402.79,0.00014794,2]
[361032390,1747209131143,-400.0,0.00014794,2]
[361032391,1747209131153,-1129.39,0.00014794,2]
[361032392,1747209131162,-695.95,0.00014794,2]
[361032393,1747209131171,-558.35,0.00014794,2]
[361032394,1747209131181,-900.7,0.00014794,2]
[361032395,1747209131191,-2565.38,0.00014794,2]
[361032396,1747209131200,-1206.83,0.00014794,2]
[361032397,1747209131209,-400.0,0.00014794,2]
[361032398,1747209131218,-905.95,0.00014794,2]
[361032399,1747209131228,-461.69,0.00014794,2]
[361032400,1747209131238,-400.0,0.00014794,2]
[361032401,1747209131249,-704.13,0.00014794,2]
[361032402,1747209131259,-151.0,0.00014794,2]
[361032403,1747209131268,-400.0,0.00014794,2]
[361032404,1747209131278,-1026.15,0.00014794,2]
[361032405,1747209131287,-926.7,0.00014794,2]
[361032406,1747209131297,-720.88,0.00014794,2]
[361032407,1747209131307,-828.79,0.00014794,2]
[361032408,1747209131317,-696.91,0.00014794,2]
[361032409,1747209131327,-2110.67,0.00014794,2]
[361032410,1747209131336,-540.58,0.00014794,2]
[361032411,1747209131346,-400.0,0.00014794,2]
[361032412,1747209131355,-1784.16,0.00014794,2]
[361032413,1747209131367,-1232.7,0.00014794,2]
[361032414,1747209131380,-400.0,0.00014794,2]
[361032415,1747209131389,-1246.63,0.00014794,2]
[361032416,1747209131399,-400.0,0.00014794,2]
[361032417,1747209131408,-400.0,0.00014794,2]
[361032418,1747209131418,-1031.46,0.00014794,2]
[361032419,1747209131428,-415.13,0.00014794,2]
[361032420,1747209131439,-915.16,0.00014794,2]
[361032421,1747209131450,-614.08,0.00014794,2]
[361032422,1747209131460,-400.0,0.00014794,2]
[361032423,1747209131470,-8117.6,0.00014794,2]
[361032424,1747209131480,-400.0,0.00014794,2]
[361032425,1747209131490,-400.0,0.00014794,2]
[361032426,1747209131499,-1273.28,0.00014794,2]
[361032427,1747209131510,-400.0,0.00014794,2]
[361032428,1747209131519,-400.0,0.00014794,2]
[361032429,1747209131528,-400.0,0.00014794,2]
[361032430,1747209131538,-2424.58,0.00014794,2]
[361032431,1747209131547,-447.54,0.00014794,2]
[361032432,1747209131558,-400.0,0.00014794,2]
[361032433,1747209131567,-723.09,0.00014794,2]
[361032434,1747209131578,-1958.39,0.00014794,2]
[361032435,1747209131668,-422.1,0.00014794,2]
[361032436,1747209131678,-2526.26,0.00014794,2]
[361032437,1747209131687,-803.6,0.00014794,2]
[361032438,1747209131696,-2914.11,0.00014794,2]
[361032439,1747209131705,-8091.9,0.00014794,2]
[361032440,1747209131714,-599.26,0.00014794,2]
[361032441,1747209131723,-905.05,0.00014794,2]
[361032442,1747209131732,-805.31,0.00014794,2]
[361032443,1747209131742,-1722.0,0.00014794,2]
[361032444,1747209131752,-360.67834145,0.00014794,2]
[361032445,1747209131762,-400.0,0.00014794,2]
[361032446,1747209131771,-981.33,0.00014794,2]
[361032447,1747209131781,-1500.0,0.00014795,2]
[361032448,1747209131790,-1500.0,0.00014795,2]
[361032449,1747209131800,-1500.0,0.00014795,2]
[361032450,1747209131810,-1500.0,0.00014795,2]
[361032451,1747209131820,-1500.0,0.00014795,2]
[361032452,1747209131829,-1500.0,0.00014795,2]
[361032453,1747209131840,-1160.54014181,0.00014795,2]
[361032454,1747209131850,-1500.0,0.00014795,2]
[361032455,1747209131860,-1500.0,0.00014795,2]
[361032456,1747209131869,-1259.4371526,0.00014795,2]
[361032457,1747209131879,-1500.0,0.00014795,2]
[361032458,1747209131888,-1500.0,0.00014795,2]
[361032459,1747209131898,-1500.0,0.00014795,2]
[361032460,1747209131907,-1500.0,0.00014795,2]
[361032461,1747209131916,-1502.8396895,0.00014795,2]
[361032462,1747209131925,-1500.0,0.00014795,2]
[361032463,1747209131935,-659.72079702,0.00014795,2]
[361032464,1747209131945,-1500.0,0.00014795,2]
[361032465,1747209131955,-1500.0,0.00014795,2]
[361032466,1747209131964,-596.68178301,0.00014795,2]
[361032467,1747209131973,-1500.0,0.00014795,2]
[361032468,1747209131983,-384.63394623,0.00014888,2]
[361032469,1747209131993,-3019.33608518,0.000149,2]
[361032470,1747209132004,-237.561168,0.000149,2]
[361032471,1747209132014,-237.561168,0.000149,2]
[361032472,1747209132023,-15594.9706927,0.000149,2]
[361032473,1747209132033,-157.530795,0.000149,2]
[361032474,1747209132043,-157.530795,0.000149,2]
[361032475,1747209132052,-179.904533,0.000149,2]
[361032476,1747209132062,-179.904533,0.000149,2]
[361032477,1747209132070,-512.0,0.0001493,2]
[361032478,1747209132080,-1000.0,0.0001497,2]
[361032479,1747209132090,-500.0,0.0001497,2]
[361032480,1747209132099,-327.88063828,0.0001499,2]
[361032481,1747209132107,-1981.38014242,0.00015,2]
[361032482,1747209132116,-759.48333851,0.00015,2]
[361032483,1747209132125,-173.7,0.00015,2]
[361032484,1747209132134,-150.75198946,0.00015,14]
[361032485,1747209132143,-623.45,0.00015,2]
[361032486,1747209132152,-3617.21,0.00015,7]
[361032487,1747209132161,-400.0,0.00015067,2]
[361032488,1747209132170,-528.13,0.00015067,2]
[361032489,1747209132179,-816.27,0.00015067,2]
[361032490,1747209132188,-679.38,0.00015067,2]
[361032491,1747209132197,-400.0,0.00015068,2]
[361032492,1747209132206,-151.0,0.00015068,2]
[361032493,1747209132214,-861.582106,0.00015068,2]
[361032494,1747209132223,-861.582106,0.00015068,2]
[361032495,1747209132233,-703.18,0.00015068,2]
[361032496,1747209132243,-151.0,0.00015068,2]
[361032497,1747209132254,-151.0,0.00015068,2]
[361032498,1747209132263,-151.0,0.00015068,2]
[361032499,1747209132274,-151.0,0.00015068,2]
[361032500,1747209132283,-172.605832,0.00015068,2]
[361032501,1747209132293,-172.605832,0.00015068,2]
[361032502,1747209132303,-155.281927,0.00015068,2]
[361032503,1747209132313,-349.855303,0.00015068,2]
[361032504,1747209132322,-349.855303,0.00015068,2]
[361032505,1747209132332,-300.381756,0.00015068,2]
[361032506,1747209132342,-300.381756,0.00015068,2]
[361032507,1747209132351,-596.11,0.00015068,2]
[361032508,1747209132361,-151.0,0.00015068,2]
[361032509,1747209132371,-400.0,0.00015068,2]
[361032510,1747209132380,-151.0,0.00015068,2]
[361032511,1747209132390,-694.603253,0.00015068,2]
[361032512,1747209132400,-711.57,0.00015068,2]
[361032513,1747209132411,-737.65,0.00015068,2]
[361032514,1747209132420,-694.603253,0.00015068,2]
[361032515,1747209132430,-672.9,0.00015068,2]
[361032516,1747209132439,-460.32,0.00015068,2]
[361032517,1747209132450,-400.0,0.00015068,2]
[361032518,1747209132459,-400.0,0.00015068,2]
[361032519,1747209132468,-939.06,0.00015068,2]
[361032520,1747209132478,-436.72,0.00015068,2]
[361032521,1747209132487,-400.0,0.00015068,2]
[361032522,1747209132497,-1236.03,0.00015068,2]
[361032523,1747209132507,-882.64,0.00015068,2]
[361032524,1747209132517,-454.2874112,0.00015068,2]
[361032525,1747209132526,-400.0,0.00015068,2]
[361032526,1747209132536,-483.18,0.00015068,2]
[361032527,1747209132546,-400.0,0.00015068,2]
[361032528,1747209132556,-400.0,0.00015068,2]
[361032529,1747209132565,-479.52,0.00015068,2]
[361032530,1747209132575,-634.51,0.00015068,2]
[361032531,1747209132584,-435.37,0.00015068,2]
[361032532,1747209132593,-596.16,0.00015068,2]
[361032533,1747209132603,-494.69,0.00015068,2]
[361032534,1747209132612,-400.0,0.00015068,2]
[361032535,1747209132621,-400.0,0.00015068,2]
[361032536,1747209132630,-400.0,0.00015068,2]
[361032537,1747209132640,-599.12,0.00015068,2]
[361032538,1747209132650,-400.0,0.00015068,2]
[361032539,1747209132659,-1062.41,0.00015068,2]
[361032540,1747209132669,-400.0,0.00015068,2]
[361032541,1747209132678,-400.0,0.00015068,2]
[361032542,1747209132688,-1179.96,0.00015068,2]
[361032543,1747209132697,-450.9,0.00015068,2]
[361032544,1747209132707,-884.53,0.00015068,2]
[361032545,1747209132716,-1027.84,0.00015068,2]
[361032546,1747209132725,-1395.43,0.00015068,2]
[361032547,1747209132735,-543.81,0.00015068,2]
[361032548,1747209132744,-688.09,0.00015068,2]
[361032549,1747209132754,-540.49,0.00015068,2]
[361032550,1747209132764,-545.09,0.00015068,2]
[361032551,1747209132774,-651.66,0.00015068,2]
[361032552,1747209132783,-1082.93,0.00015068,2]
[361032553,1747209132792,-476.99,0.00015068,2]
[361032554,1747209132802,-502.4,0.00015068,2]
[361032555,1747209132811,-400.0,0.00015068,2]
[361032556,1747209132821,-518.03,0.00015068,2]
[361032557,1747209132831,-400.0,0.00015068,2]
[361032558,1747209132840,-400.0,0.00015068,2]
[361032559,1747209132850,-2119.41,0.00015068,2]
[361032560,1747209132859,-528.83,0.00015068,2]
[361032561,1747209132868,-1034.94,0.00015068,2]
[361032562,1747209132878,-521.6,0.00015068,2]
[361032563,1747209132887,-833.6,0.00015068,2]
[361032564,1747209132897,-1089.67,0.00015068,2]
[361032565,1747209132906,-855.81,0.00015068,2]
[361032566,1747209132916,-649.48,0.00015068,2]
[361032567,1747209132925,-662.78,0.00015068,2]
[361032568,1747209132935,-1112.52,0.00015068,2]
[361032569,1747209132944,-400.0,0.00015068,2]
[361032570,1747209132954,-450.15,0.00015068,2]
[361032571,1747209132963,-670.7,0.00015068,2]
[361032572,1747209132972,-665.82,0.00015068,2]
[361032573,1747209132982,-400.0,0.00015068,2]
[361032574,1747209132992,-400.0,0.00015068,2]
[361032575,1747209133002,-936.51,0.00015068,2]
[361032576,1747209133011,-1073.27,0.00015068,2]
[361032577,1747209133021,-1216.82,0.00015068,2]
[361032578,1747209133030,-400.0,0.00015068,2]
[361032579,1747209133039,-400.0,0.00015068,2]
[361032580,1747209133049,-400.0,0.00015068,2]
[361032581,1747209133059,-909.1,0.00015068,2]
[361032582,1747209133068,-1630.94,0.00015068,2]
[361032583,1747209133078,-400.0,0.00015068,2]
[361032584,1747209133087,-565.83,0.00015068,2]
[361032585,1747209133097,-1329.57,0.00015068,2]
[361032586,1747209133106,-1847.25,0.00015068,2]
[361032587,1747209133115,-400.0,0.00015068,2]
[361032588,1747209133125,-422.51,0.00015068,2]
[361032589,1747209133135,-400.0,0.00015068,2]
[361032590,1747209133145,-876.56,0.00015068,2]
[361032591,1747209133155,-2140.12,0.00015068,2]
[361032592,1747209133164,-571.96,0.00015068,2]
[361032593,1747209133174,-410.56,0.00015068,2]
[361032594,1747209133183,-892.67,0.00015068,2]
[361032595,1747209133192,-400.0,0.00015068,2]
[361032596,1747209133202,-400.0,0.00015068,2]
[361032597,1747209133211,-421.25141344,0.00015068,2]
[361032598,1747209133220,-400.0,0.00015068,2]
[361032599,1747209133230,-1074.21,0.00015068,2]
[361032600,1747209133240,-507.63,0.00015068,2]
[361032601,1747209133250,-2412.67,0.00015068,2]
[361032602,1747209133259,-400.0,0.00015068,2]
[361032603,1747209133269,-336.51032407,0.00015068,2]
[361032604,1747209133279,-1071.37,0.00015068,2]
[361032605,1747209133289,-400.0,0.00015068,2]
[361032606,1747209133299,-585.74,0.00015068,2]
[361032607,1747209133309,-1055.84,0.00015068,2]
[361032608,1747209133322,-1569.68,0.00015068,2]
[361032609,1747209133332,-3342.19,0.00015068,2]
[361032610,1747209133341,-1011.98,0.00015068,2]
[361032611,1747209133351,-437.7,0.00015068,2]
[361032612,1747209133361,-841.38,0.00015068,2]
[361032613,1747209133375,-2138.29,0.00015068,2]
[361032614,1747209133384,-931.09,0.00015068,2]
[361032615,1747209133393,-400.03,0.00015068,2]
[361032616,1747209133403,-799.14,0.00015068,2]
[361032617,1747209133414,-561.99,0.00015068,2]
[361032618,1747209133424,-447.86,0.00015068,2]
[361032619,1747209133434,-1791.98,0.00015068,2]
[361032620,1747209133444,-1506.45,0.00015068,2]
[361032621,1747209133454,-500.31,0.00015068,2]
[361032622,1747209133464,-1248.25,0.00015068,2]
[361032623,1747209133473,-400.0,0.00015068,2]
[361032624,1747209133481,-466.29,0.00015068,2]
[361032625,1747209133489,-559.56,0.00015068,2]
[361032626,1747209133499,-499.83,0.00015068,2]
[361032627,1747209133507,-400.0,0.00015068,2]
[361032628,1747209133517,-648.49,0.00015068,2]
[361032629,1747209133526,-400.0,0.00015068,2]
[361032630,1747209133535,-735.21,0.00015068,2]
[361032631,1747209133543,-2396.6,0.00015068,2]
[361032632,1747209133552,-488.25,0.00015068,2]
[361032633,1747209133560,-686.74,0.00015068,2]
[361032634,1747209133569,-663.93,0.00015068,2]
[361032635,1747209133577,-254.65796081,0.00015068,2]
[361032636,1747209133586,-400.0,0.00015068,2]
[361032637,1747209133595,-765.05,0.00015068,2]
[361032638,1747209133603,-400.0,0.00015068,2]
[361032639,1747209133612,-400.0,0.00015068,2]
[361032640,1747209133621,-837.82,0.00015068,2]
[361032641,1747209133630,-846.38,0.00015068,2]
[361032642,1747209133639,-386.16621788,0.00015068,2]
[361032643,1747209133648,-713.16,0.00015068,2]
[361032644,1747209133656,-544.35,0.00015068,2]
[361032645,1747209133665,-1073.49,0.00015068,2]
[361032646,1747209133674,-452.73,0.00015068,2]
[361032647,1747209133683,-400.0,0.00015068,2]
[361032648,1747209133692,-400.0,0.00015068,2]
[361032649,1747209133701,-610.73,0.00015068,2]
[361032650,1747209133710,-325.8272878,0.00015068,2]
[361032651,1747209133719,-1075.48,0.00015068,2]
[361032652,1747209133728,-400.0,0.00015068,2]
[361032653,1747209133736,-442.29,0.00015068,2]
[361032654,1747209133746,-400.0,0.00015068,2]
[361032655,1747209133755,-1807.34,0.00015068,2]
[361032656,1747209133765,-400.0,0.00015068,2]
[361032657,1747209133775,-561.75,0.00015068,2]
[361032658,1747209133785,-546.56,0.00015068,2]
[361032659,1747209133795,-504.1,0.00015068,2]
[361032660,1747209133804,-690.43,0.00015068,2]
[361032661,1747209133815,-400.0,0.00015068,2]
[361032662,1747209133824,-416.24,0.00015068,2]
[361032663,1747209133834,-402.6,0.00015068,2]
[361032664,1747209133844,-400.0,0.00015068,2]
[361032665,1747209133854,-400.0,0.00015068,2]
[361032666,1747209133864,-1113.76,0.00015068,2]
[361032667,1747209133874,-1405.65,0.00015068,2]
[361032668,1747209133884,-468.31,0.00015068,2]
[361032669,1747209133894,-1001.39,0.00015068,2]
[361032670,1747209133904,-777.85,0.00015068,2]
[361032671,1747209133914,-665.02,0.00015068,2]
[361032672,1747209133924,-2209.78,0.00015068,2]
[361032673,1747209133933,-542.27,0.00015068,2]
[361032674,1747209133943,-400.0,0.00015068,2]
[361032675,1747209133952,-400.0,0.00015068,2]
[361032676,1747209133962,-1048.34,0.00015068,2]
[361032677,1747209133971,-400.0,0.00015068,2]
[361032678,1747209133981,-1451.38,0.00015068,2]
[361032679,1747209133990,-619.23,0.00015068,2]
[361032680,1747209134000,-2336.68,0.00015068,2]
[361032681,1747209134010,-845.06,0.00015068,2]
[361032682,1747209134019,-400.0,0.00015068,2]
[361032683,1747209134029,-1320.89,0.00015068,2]
[361032684,1747209134039,-400.0,0.00015068,2]
[361032685,1747209134049,-666.66,0.00015068,2]
[361032686,1747209134058,-663.81,0.00015068,2]
[361032687,1747209134068,-400.0,0.00015068,2]
[361032688,1747209134078,-400.0,0.00015068,2]
[361032689,1747209134088,-541.3,0.00015068,2]
[361032690,1747209134098,-400.0,0.00015068,2]
[361032691,1747209134108,-400.0,0.00015068,2]
[361032692,1747209134117,-1134.08,0.00015068,2]
[361032693,1747209134127,-445.33,0.00015068,2]
[361032694,1747209134138,-1257.84,0.00015068,2]
[361032695,1747209134148,-575.36,0.00015068,2]
[361032696,1747209134158,-1007.26,0.00015068,2]
[361032697,1747209134167,-400.0,0.00015068,2]
[361032698,1747209134177,-659.39,0.00015068,2]
[361032699,1747209134186,-1204.75,0.00015068,2]
[361032700,1747209134196,-400.98,0.00015068,2]
[361032701,1747209134206,-906.35,0.00015068,2]
[361032702,1747209134216,-1524.33,0.00015068,2]
[361032703,1747209134226,-466.88,0.00015068,2]
[361032704,1747209134235,-774.55,0.00015068,2]
[361032705,1747209134246,-400.0,0.00015068,2]
[361032706,1747209134256,-873.16,0.00015068,2]
[361032707,1747209134265,-523.37,0.00015068,2]
[361032708,1747209134275,-4342.01,0.00015068,2]
[361032709,1747209134285,-352.56,0.00015068,2]
[361032710,1747209134295,-3290.66,0.00015068,2]
[361032711,1747209134305,-620.73,0.00015068,2]
[361032712,1747209134315,-1318.63,0.00015068,2]
[361032713,1747209134325,-400.0,0.00015068,2]
[361032714,1747209134335,-794.74,0.00015068,2]
[361032715,1747209134345,-400.0,0.00015068,2]
[361032716,1747209134355,-558.78,0.00015068,2]
[361032717,1747209134365,-496.52,0.00015068,2]
[361032718,1747209134378,-400.0,0.00015068,2]
[361032719,1747209134388,-903.19,0.00015068,2]
[361032720,1747209134398,-824.62,0.00015068,2]
[361032721,1747209134407,-1186.62,0.00015068,2]
[361032722,1747209134418,-525.47,0.00015068,2]
[361032723,1747209134428,-400.0,0.00015068,2]
[361032724,1747209134438,-992.09,0.00015068,2]
[361032725,1747209134450,-507.48,0.00015068,2]
[361032726,1747209134461,-1186.0,0.00015068,2]
[361032727,1747209134472,-871.03,0.00015068,2]
[361032728,1747209134482,-8303.1,0.00015068,2]
[361032729,1747209134492,-2394.97,0.00015068,2]
[361032730,1747209134502,-635.51,0.00015068,2]
[361032731,1747209134512,-400.0,0.00015068,2]
[361032732,1747209134522,-635.86,0.00015068,2]
[361032733,1747209134531,-483.25,0.00015068,2]
[361032734,1747209134542,-762.97,0.00015068,2]
[361032735,1747209134552,-539.78,0.00015068,2]
[361032736,1747209134562,-400.0,0.00015068,2]
[361032737,1747209134572,-566.07,0.00015068,2]
[361032738,1747209134582,-400.0,0.00015068,2]
[361032739,1747209134591,-400.0,0.00015068,2]
[361032740,1747209134601,-3884.54,0.00015068,2]
[361032741,1747209134611,-9332.17,0.00015068,2]
[361032742,1747209134622,-429.51780005,0.00015068,2]
[361032743,1747209134632,-400.0,0.00015068,2]
[361032744,1747209134642,-521.21,0.00015068,2]
[361032745,1747209134653,-1359.75,0.00015068,2]
[361032746,1747209134663,-1804.54,0.00015068,2]
[361032747,1747209134673,-3867.76,0.00015068,2]
[361032748,1747209134683,-1228.35,0.00015068,2]
[361032749,1747209134693,-454.4,0.00015068,2]
[361032750,1747209134703,-400.0,0.00015068,2]
[361032751,1747209134713,-470.84,0.00015068,2]
[361032752,1747209134724,-451.23,0.00015068,2]
[361032753,1747209134734,-1518.64,0.00015068,2]
[361032754,1747209134744,-3045.01,0.00015068,2]
[361032755,1747209134754,-3381.56,0.00015068,2]
[361032756,1747209134764,-7510.59,0.00015068,2]
[361032757,1747209134774,-983.94,0.00015068,2]
[361032758,1747209134783,-480.02,0.00015068,2]
[361032759,1747209134793,-616.03,0.00015068,2]
[361032760,1747209134802,-585.46,0.00015068,2]
[361032761,1747209134812,-400.0,0.00015068,2]
[361032762,1747209134821,-1727.32,0.00015068,2]
[361032763,1747209134830,-1174.5,0.00015068,2]
[361032764,1747209134840,-824.11,0.00015068,2]
[361032765,1747209134850,-400.0,0.00015068,2]
[361032766,1747209134859,-901.12,0.00015068,2]
[361032767,1747209134868,-400.0,0.00015068,2]
[361032768,1747209134877,-400.0,0.00015068,2]
[361032769,1747209134887,-400.0,0.00015068,2]
[361032770,1747209134897,-465.08,0.00015068,2]
[361032771,1747209134906,-975.74,0.00015068,2]
[361032772,1747209134915,-1658.78,0.00015068,2]
[361032773,1747209134925,-400.0,0.00015068,2]
[361032774,1747209134935,-700.75,0.00015068,2]
[361032775,1747209134944,-2190.3,0.00015068,2]
[361032776,1747209134954,-803.12,0.00015068,2]
[361032777,1747209134963,-400.0,0.00015068,2]
[361032778,1747209134973,-1386.9,0.00015068,2]
[361032779,1747209134984,-400.0,0.00015068,2]
[361032780,1747209134994,-400.0,0.00015068,2]
[361032781,1747209135004,-485.56,0.00015068,2]
[361032782,1747209135014,-1242.02,0.00015068,2]
[361032783,1747209135023,-790.06,0.00015068,2]
[361032784,1747209135033,-400.0,0.00015068,2]
[361032785,1747209135043,-1050.16,0.00015068,2]
[361032786,1747209135052,-400.0,0.00015068,2]
[361032787,1747209135062,-21204.56,0.00015068,2]
[361032788,1747209135072,-1025.65,0.00015068,2]
[361032789,1747209135082,-400.0,0.00015068,2]
[361032790,1747209135091,-462.47,0.00015068,2]
[361032791,1747209135101,-489.88,0.00015068,2]
[361032792,1747209135111,-433.44,0.00015068,2]
[361032793,1747209135120,-1903.72,0.00015068,2]
[361032794,1747209135130,-903.36,0.00015068,2]
[361032795,1747209135140,-400.0,0.00015068,2]
[361032796,1747209135150,-460.59,0.00015068,2]
[361032797,1747209135160,-1352.46,0.00015068,2]
[361032798,1747209135170,-2297.07,0.00015068,2]
[361032799,1747209135179,-5802.65,0.00015068,2]
[361032800,1747209135191,-713.5,0.00015068,2]
[361032801,1747209135201,-1266.9,0.00015068,2]
[361032802,1747209135211,-1158.53,0.00015068,2]
[361032803,1747209135220,-434.56,0.00015068,2]
[361032804,1747209135230,-1010.68,0.00015068,2]
[361032805,1747209135239,-484.69,0.00015068,2]
[361032806,1747209135248,-1095.0,0.00015068,2]
[361032807,1747209135259,-1932.75,0.00015068,2]
[361032808,1747209135269,-435.72,0.00015068,2]
[361032809,1747209135278,-1315.66,0.00015068,2]
[361032810,1747209135287,-457.59,0.00015068,2]
[361032811,1747209135297,-496.1,0.00015068,2]
[361032812,1747209135306,-814.19,0.00015068,2]
[361032813,1747209135315,-459.36,0.00015068,2]
[361032814,1747209135324,-5005.62,0.00015068,2]
[361032815,1747209135333,-615.67,0.00015068,2]
[361032816,1747209135342,-4200.08,0.00015068,2]
[361032817,1747209135352,-402.79,0.00015068,2]
[361032818,1747209135362,-400.0,0.00015068,2]
[361032819,1747209135374,-1129.39,0.00015068,2]
[361032820,1747209135383,-695.95,0.00015068,2]
[361032821,1747209135392,-558.35,0.00015068,2]
[361032822,1747209135401,-900.7,0.00015068,2]
[361032823,1747209135413,-2565.38,0.00015068,2]
[361032824,1747209135423,-1206.83,0.00015068,2]
[361032825,1747209135432,-400.0,0.00015068,2]
[361032826,1747209135443,-905.95,0.00015068,2]
[361032827,1747209135452,-461.69,0.00015068,2]
[361032828,1747209135462,-400.0,0.00015068,2]
[361032829,1747209135471,-704.13,0.00015068,2]
[361032830,1747209135480,-1026.15,0.00015068,2]
[361032831,1747209135490,-400.0,0.00015068,2]
[361032832,1747209135499,-926.7,0.00015068,2]
[361032833,1747209135511,-720.88,0.00015068,2]
[361032834,1747209135521,-828.79,0.00015068,2]
[361032835,1747209135532,-696.91,0.00015068,2]
[361032836,1747209135542,-2110.67,0.00015068,2]
[361032837,1747209135553,-540.58,0.00015068,2]
[361032838,1747209135564,-320.26466518,0.00015068,2]
[361032839,1747209135573,-1784.16,0.00015068,2]
[361032840,1747209135583,-1232.7,0.00015068,2]
[361032841,1747209135593,-400.0,0.00015068,2]
[361032842,1747209135603,-400.0,0.00015068,2]
[361032843,1747209135613,-1246.63,0.00015068,2]